lending/lending_fUSD_20251111
["ID","MTS","AMOUNT","RATE_DAILY","PERIOD"]
[393627328,1762864266325,-151.0,0.00039882,120]
[393627329,1762864266334,-151.0,0.00039882,120]
[393627330,1762864266343,-151.0,0.00039882,120]
[393627331,1762864266354,-151.0,0.00039882,120]
[393627332,1762864266363,-151.0,0.00039882,120]
[393627333,1762864266372,-151.0,0.00039882,120]
[393627334,1762864266382,-151.0,0.00039882,120]
[393627335,1762864266393,-151.0,0.00039882,120]
[393627336,1762864266402,-151.0,0.00039882,120]
[393627337,1762864266411,-151.0,0.00039882,120]
[393627338,1762864266420,-151.0,0.00039882,120]
[393627339,1762864266429,-151.0,0.00039882,120]
[393627340,1762864266438,-151.0,0.00039882,120]
[393627341,1762864266447,-154.892027,0.00039882,120]
[393627342,1762864266456,-151.0,0.00039882,120]
[393627343,1762864266465,-151.0,0.00039882,120]
[393627344,1762864266474,-151.0,0.00039882,120]
[393627345,1762864266483,-151.0,0.00039882,120]
[393627346,1762864266594,-151.0,0.00039882,120]
[393627347,1762864266603,-195.220456,0.00039882,120]
[393627348,1762864266613,-151.0,0.00039882,120]
[393627349,1762864266623,-151.0,0.00039882,120]
[393627350,1762864266633,-151.0,0.00039882,120]
[393627351,1762864266642,-155.955535,0.00039882,120]
[393627352,1762864266651,-151.0,0.00039882,120]
[393627353,1762864266661,-151.0,0.00039882,120]
[393627354,1762864266670,-151.0,0.00039882,120]
[393627355,1762864266679,-151.0,0.00039882,120]
[393627356,1762864266689,-151.0,0.00039882,120]
[393627357,1762864266699,-151.0,0.00039882,120]
[393627358,1762864266709,-151.0,0.00039882,30]
[393627359,1762864266719,-151.0,0.00039882,30]
[393627360,1762864266728,-151.0,0.00039882,120]
[393627361,1762864266738,-151.0,0.00039882,120]
[393627362,1762864266748,-151.0,0.00039882,120]
[393627363,1762864266758,-655.675517,0.00039882,120]
[393627364,1762864266766,-151.0,0.00039882,120]
[393627365,1762864266775,-655.675517,0.00039882,120]
[393627366,1762864266784,-151.0,0.00039882,120]
[393627367,1762864266794,-151.0,0.00039882,120]
[393627368,1762864266804,-655.675517,0.00039882,120]
[393627369,1762864266815,-151.0,0.00039882,120]
[393627370,1762864266824,-655.675517,0.00039882,120]
[393627371,1762864266833,-151.0,0.00039882,120]
[393627372,1762864266843,-151.0,0.00039882,120]
[393627373,1762864266853,-151.0,0.00039882,120]
[393627374,1762864266863,-151.0,0.00039882,120]
[393627375,1762864266872,-151.0,0.00039882,120]
[393627376,1762864266882,-655.675517,0.00039882,120]
[393627377,1762864266892,-655.675517,0.00039882,120]
[393627378,1762864266902,-655.675517,0.00039882,120]
[393627379,1762864266916,-655.675525,0.00039882,120]
[393627380,1762864266928,-245.062125,0.00039882,30]
[393627381,1762864266939,-166.9717,0.00039882,120]
[393627382,1762864266949,-166.9717,0.00039882,120]
[393627383,1762864266960,-166.9717,0.00039882,120]
[393627384,1762864266969,-166.9717,0.00039882,120]
[393627385,1762864266979,-338.517687,0.00039882,120]
[393627386,1762864266988,-338.517687,0.00039882,120]
[393627387,1762864266998,-166.9717,0.00039882,120]
[393627388,1762864267008,-166.9717,0.00039882,120]
[393627389,1762864267018,-338.517687,0.00039882,120]
[393627390,1762864267027,-338.517687,0.00039882,120]
[393627391,1762864267039,-166.9717,0.00039882,120]
[393627392,1762864267048,-166.971705,0.00039882,120]
[393627393,1762864267058,-338.517687,0.00039882,120]
[393627394,1762864267067,-151.0,0.00039882,120]
[393627395,1762864267077,-338.517687,0.00039882,120]
[393627396,1762864267086,-151.0,0.00039882,120]
[393627397,1762864267095,-338.517687,0.00039882,120]
[393627398,1762864267105,-338.517696,0.00039882,120]
[393627399,1762864267115,-151.0,0.00039882,120]
[393627400,1762864267124,-151.0,0.00039882,120]
[393627401,1762864267134,-151.0,0.00039882,120]
[393627402,1762864267144,-151.0,0.00039882,120]
[393627403,1762864267154,-151.0,0.00039882,120]
[393627404,1762864267164,-151.0,0.00039882,120]
[393627405,1762864267173,-183.207224,0.00039882,120]
[393627406,1762864267183,-183.207224,0.00039882,120]
[393627407,1762864267193,-183.207224,0.00039882,120]
[393627408,1762864267202,-183.207224,0.00039882,120]
[393627409,1762864267212,-183.207224,0.00039882,120]
[393627410,1762864267221,-183.207224,0.00039882,120]
[393627411,1762864267230,-183.207224,0.00039882,120]
[393627412,1762864267239,-183.207226,0.00039882,120]
[393627413,1762864267248,-194.57592,0.00039882,120]
[393627414,1762864267257,-194.57592,0.00039882,120]
[393627415,1762864267267,-194.57592,0.00039882,120]
[393627416,1762864267285,-194.57592,0.00039882,120]
[393627417,1762864267299,-194.57592,0.00039882,120]
[393627418,1762864267311,-151.0,0.00039882,120]
[393627419,1762864267324,-194.57592,0.00039882,120]
[393627420,1762864267334,-151.0,0.00039882,120]
[393627421,1762864267344,-151.0,0.00039882,120]
[393627422,1762864267355,-151.0,0.00039882,120]
[393627423,1762864267365,-194.57592,0.00039882,120]
[393627424,1762864267374,-194.575929,0.00039882,120]
[393627425,1762864267384,-151.0,0.00039882,120]
[393627426,1762864267397,-151.0,0.00039882,120]
[393627427,1762864267407,-151.0,0.00039882,120]
[393627428,1762864267416,-151.0,0.00039882,120]
[393627429,1762864267426,-151.0,0.00039882,120]
[393627430,1762864267435,-151.0,0.00039882,120]
[393627431,1762864267444,-151.0,0.00039882,120]
[393627432,1762864267453,-151.0,0.00039882,120]
[393627433,1762864267463,-218.063022,0.00039882,120]
[393627434,1762864267473,-151.0,0.00039882,120]
[393627435,1762864267483,-218.063022,0.00039882,120]
[393627436,1762864267493,-218.063022,0.00039882,120]
[393627437,1762864267502,-151.0,0.00039882,120]
[393627438,1762864267512,-218.063032,0.00039882,120]
[393627439,1762864267522,-151.0,0.00039882,120]
[393627440,1762864267531,-233.764415,0.00039882,120]
[393627441,1762864267541,-386.976691,0.00039882,120]
[393627442,1762864267554,-386.976691,0.00039882,120]
[393627443,1762864267563,-386.976691,0.00039882,120]
[393627444,1762864267573,-221.868087,0.00039882,95]
[393627445,1762864267583,-386.976699,0.00039882,120]
[393627446,1762864267593,-2000.0,0.00039882,5]
[393627447,1762864267606,-2118328.4780607,0.00039882,7]
[393627448,1762864267811,-577.36270531,0.00039882,7]
[393627449,1762864267824,-6778.95842786,0.00039882,7]
[393627450,1762864267839,-4199.01749297,0.00039882,7]
[393627451,1762864267853,-813.8673398,0.00039882,7]
[393627452,1762864267864,-500.0,0.00039882,7]
[393627453,1762864267877,-4712.18461572,0.00039882,7]
[393627454,1762864267889,-507.96196028,0.00039882,7]
[393627455,1762864267900,-80430.00000005,0.00039882,7]
[393627456,1762864267911,-989.84843848,0.00039882,7]
[393627457,1762864268015,-151.0,0.000249,7]
[393627458,1762864268024,-151.0,0.000249,7]
[393627459,1762864268034,-151.0,0.000249,7]
[393627460,1762864268044,-151.0,0.000249,7]
[393627461,1762864268056,-151.0,0.00036167,31]
[393627462,1762864268067,-151.0,0.00036167,30]
[393627463,1762864268077,-151.0,0.00036167,31]
[393627464,1762864268087,-151.0,0.0003945,120]
[393627465,1762864268098,-151.0,0.0003945,120]
[393627466,1762864268108,-151.0,0.00039601,120]
[393627467,1762864268118,-151.0,0.00039601,120]
[393627468,1762864268128,-172.829157,0.00039601,120]
[393627469,1762864268138,-77.32345256,0.00039651,120]
[393627470,1762864268150,-73.67654744,0.00039651,120]
[393627471,1762864268160,-151.0,0.00039651,120]
[393627472,1762864268170,-2493.75422535,0.00039882,7]
[393627473,1762864268182,-1849.49800974,0.00039882,7]
[393627474,1762864268196,-866.31182605,0.00039882,7]
[393627475,1762864268211,-685.17170304,0.00039882,7]
[393627476,1762864268231,-151.0,0.0003945,30]
[393627477,1762864268240,-145.16242959,0.0003945,120]
[393627478,1762864268256,-5.83757041,0.0003945,120]
[393627479,1762864268267,-305.57387787,0.00039882,7]
[393627480,1762864268281,-5598814.52356485,0.00039882,7]
[393627481,1762864268376,-180.246269,0.000249,7]
[393627482,1762864268386,-252.173088,0.000249,7]
[393627483,1762864268398,-151.0,0.00036167,31]
[393627484,1762864268408,-151.0,0.00036167,31]
[393627485,1762864268422,-2246.56024518,0.00037229,2]
[393627486,1762864268434,-515.61510002,0.00037229,2]
[393627487,1762864268806,-191.57459816,0.000179,2]
[393627488,1762864268816,-663.8246548,0.00037229,2]
[393627489,1762864268826,-608.0,0.00037229,2]
[393627490,1762864268835,-96.18360644,0.00038246,30]
[393627491,1762864268847,-353.4968648,0.00038246,30]
[393627492,1762864268857,-150.0,0.00038246,30]
[393627493,1762864268866,-113.91047119,0.0003945,120]
[393627494,1762864268878,-37.08952881,0.0003945,120]
[393627495,1762864268888,-151.0,0.00039482,120]
[393627496,1762864268897,-198.31433,0.00039601,120]
[393627497,1762864268907,-151.0,0.00039601,30]
[393627498,1762864268917,-151.0,0.00039601,120]
[393627499,1762864268926,-151.0,0.00039601,120]
[393627500,1762864268936,-151.0,0.00039651,30]
[393627501,1762864268946,-10.86614119,0.00039651,120]
[393627502,1762864268959,-140.13385881,0.00039651,120]
[393627503,1762864268969,-151.0,0.00039651,120]
[393627504,1762864268979,-42257.86984078,0.00039882,7]
[393627505,1762864269283,214.4526466,0.0001969,120]
[393627520,1762864780063,294.52,9.696e-05,2]
[393627521,1762864780342,294.52,0.00010186,2]
[393627522,1762864780672,294.52,0.00010676,2]
[393627523,1762864781107,294.52,0.00011166,2]
[393627524,1762864781309,294.52,0.00011657,2]
[393627525,1762864781636,294.52,0.00012147,2]
[393627526,1762864781871,294.52,0.00012637,2]
[393627527,1762864782051,294.52,0.00013128,2]
[393627528,1762864782264,294.52,0.00013618,2]
[393627529,1762864782452,294.52,0.00014108,2]
[393627530,1762864782674,294.52,0.00014598,2]
[393627541,1762864893921,150.0,0.00016486,120]
[393627547,1762865329846,306.76,0.00013699,2]
[393627651,1762865432339,-294.52,0.00015089,2]
[393627652,1762865432349,-156.27506628,0.00015479,2]
[393627653,1762865432358,-294.52,0.00015579,2]
[393627654,1762865432374,-160.0,0.00015606,2]
[393627655,1762865432384,-166.66,0.00015662,2]
[393627656,1762865432394,-166.66,0.00015992,2]
[393627657,1762865432403,-294.52,0.00016069,2]
[393627658,1762865432412,-166.66,0.00016322,2]
[393627659,1762865432421,-173.83016709,0.00016387,2]
[393627660,1762865432430,-1852.42,0.00016486,2]
[393627661,1762865432440,-150.0,0.00016486,2]
[393627662,1762865432449,-999.0,0.00016486,3]
[393627663,1762865432458,-294.52,0.0001656,2]
[393627664,1762865432467,-300.0,0.00016596,2]
[393627665,1762865432476,-300.0,0.00016596,2]
[393627667,1762865432486,-1200.0,0.00016596,2]
[393627669,1762865432495,-1200.0,0.00016597,2]
[393627670,1762865432504,-300.0,0.00016598,2]
[393627671,1762865432516,-300.0,0.00016598,2]
[393627672,1762865432528,-300.0,0.00016598,2]
[393627673,1762865432537,-250.0,0.00016598,2]
[393627674,1762865432547,-250.0,0.00016598,2]
[393627675,1762865432556,-250.0,0.00016598,2]
[393627676,1762865432566,-166.66,0.00016651,2]
[393627677,1762865432575,-406.35476666,0.00016973,2]
[393627678,1762865432586,-93.64523334,0.00016973,2]
[393627679,1762865432595,-500.0,0.00016973,2]
[393627680,1762865432605,-500.0,0.00016973,2]
[393627682,1762865432614,-502.53995618,0.00016973,2]
[393627684,1762865432623,-500.96249559,0.00016973,2]
[393627685,1762865432633,-500.0,0.00016973,2]
[393627686,1762865432642,-500.0,0.00016973,2]
[393627687,1762865432651,-500.0,0.00016973,2]
[393627688,1762865432661,-500.0,0.00016973,2]
[393627689,1762865432671,-505.39261707,0.00016973,2]
[393627690,1762865432680,-500.0,0.00016973,2]
[393627691,1762865432691,-500.0,0.00016973,2]
[393627692,1762865432704,-171.74994195,0.00016973,2]
[393627693,1762865432713,-500.0,0.00016973,2]
[393627694,1762865432722,-500.0,0.00016973,2]
[393627695,1762865432733,-151.0,0.00016976,2]
[393627697,1762865432743,-151.0,0.00016976,2]
[393627699,1762865432752,-151.0,0.00016976,2]
[393627701,1762865432761,-151.0,0.00016976,2]
[393627702,1762865432773,-151.0,0.00016976,2]
[393627705,1762865432783,-151.0,0.00016976,2]
[393627706,1762865432792,-151.0,0.00016976,2]
[393627708,1762865432801,-151.0,0.00016976,2]
[393627710,1762865432811,-151.0,0.00016976,2]
[393627712,1762865432820,-151.0,0.00016976,2]
[393627714,1762865432829,-151.0,0.00016976,2]
[393627716,1762865432838,-151.0,0.00016976,2]
[393627718,1762865432848,-151.0,0.00016976,2]
[393627720,1762865432857,-151.0,0.00016976,2]
[393627722,1762865432867,-151.0,0.00016976,2]
[393627724,1762865432876,-151.0,0.00016976,2]
[393627726,1762865432884,-151.0,0.00016976,2]
[393627728,1762865432894,-151.0,0.00016976,2]
[393627730,1762865432903,-151.0,0.00016976,2]
[393627732,1762865432912,-151.0,0.00016976,2]
[393627734,1762865432921,-151.0,0.00016976,2]
[393627736,1762865432931,-151.0,0.00016976,2]
[393627738,1762865432941,-151.0,0.00016976,2]
[393627740,1762865432951,-151.0,0.00016976,2]
[393627742,1762865432960,-151.0,0.00016976,2]
[393627745,1762865432969,-151.0,0.00016976,2]
[393627746,1762865432979,-151.0,0.00016976,2]
[393627748,1762865432988,-151.0,0.00016976,2]
[393627751,1762865432997,-151.0,0.00016976,2]
[393627752,1762865433007,-151.0,0.00016976,2]
[393627754,1762865433017,-151.0,0.00016976,2]
[393627757,1762865433029,-151.0,0.00016976,2]
[393627759,1762865433043,-151.0,0.00016976,2]
[393627761,1762865433052,-151.0,0.00016976,2]
[393627763,1762865433062,-151.0,0.00016976,2]
[393627765,1762865433071,-166.66,0.00016981,2]
[393627767,1762865433082,-166.66,0.00016981,2]
[393627770,1762865433094,-500.0,0.00016985,2]
[393627772,1762865433103,-586.97126714,0.00016985,2]
[393627774,1762865433113,-91300.41848873,0.00016986,2]
[393627776,1762865433125,-1243.90456058,0.00016986,2]
[393627778,1762865433135,-2583.5170317,0.00016986,2]
[393627869,1762865438023,-500.78466187,0.00016986,2]
[393627870,1762865438080,-33939.00525712,0.00016986,2]
[393627871,1762865438090,-150.0,0.00016993,2]
[393627872,1762865438100,-200.0,0.00016993,2]
[393627873,1762865438110,-250.0,0.00017,2]
[393627874,1762865438120,-294.52,0.0001705,2]
[393627875,1762865438130,-166.66,0.00017311,2]
[393627876,1762865438140,-2224.19561682,0.00017459,2]
[393627877,1762865438150,-2224.19561683,0.00017459,2]
[393627878,1762865438160,-504.64694869,0.00017521,2]
[393627879,1762865438170,-502.68139073,0.00017521,2]
[393627880,1762865438179,-500.0,0.00017521,2]
[393627881,1762865438189,-923.03095329,0.00017521,2]
[393627882,1762865438199,-588.53559498,0.00017521,2]
[393627883,1762865438208,-502.30771968,0.00017521,2]
[393627884,1762865438218,-854.61699849,0.00017521,2]
[393627885,1762865438228,-1003.70945434,0.00017521,2]
[393627886,1762865438238,-294.52,0.0001754,2]
[393627887,1762865438247,-166.66,0.00017542,2]
[393627888,1762865438257,-500.0,0.00017999,2]
[393627889,1762865438268,-500.0,0.00017999,2]
[393627890,1762865438278,-500.0,0.00017999,2]
[393627891,1762865438287,-500.0,0.00017999,2]
[393627892,1762865438298,-500.0,0.00017999,2]
[393627894,1762865438307,-150.0,0.00017999,2]
[393627896,1762865438317,-500.0,0.00017999,2]
[393627898,1762865438327,-500.0,0.00017999,2]
[393627900,1762865438336,-500.0,0.00017999,2]
[393627902,1762865438346,-500.0,0.00017999,2]
[393627904,1762865438356,-595.68,0.00017999,2]
[393627906,1762865438366,-500.0,0.00017999,2]
[393627908,1762865438376,-551.52088587,0.00017999,2]
[393627910,1762865438385,-500.0,0.00017999,2]
[393627912,1762865438394,-500.0,0.00017999,2]
[393627914,1762865438404,-500.0,0.00017999,2]
[393627916,1762865438414,-500.0,0.00017999,2]
[393627918,1762865438424,-232.51861703,0.00017999,2]
[393627920,1762865438433,-500.0,0.00017999,2]
[393627922,1762865438442,-514.48012791,0.00017999,2]
[393627924,1762865438452,-500.0,0.00017999,2]
[393627926,1762865438461,-500.0,0.00017999,2]
[393627928,1762865438470,-500.0,0.00017999,2]
[393627930,1762865438480,-500.0,0.00017999,2]
[393627932,1762865438489,-235.87014725,0.00017999,2]
[393627934,1762865438499,-166.02634924,0.00018,2]
[393627936,1762865438509,-294.52,0.0001803,2]
[393627938,1762865438518,-836.87,0.00018082,2]
[393627940,1762865438528,-166.66,0.00018102,2]
[393627942,1762865438538,-420.0,0.00018134,2]
[393627944,1762865438547,-294.52,0.00018521,2]
[393627946,1762865438557,-500.0,0.00018533,2]
[393627948,1762865438566,-500.0,0.00018533,2]
[393627950,1762865438576,-501.10265894,0.00018533,2]
[393627952,1762865438585,-166.66,0.00018663,2]
[393627954,1762865438596,-836.87,0.0001876,2]
[393627956,1762865438606,-300.0,0.00019,2]
[393627958,1762865438616,-294.52,0.00019011,2]
[393627960,1762865438625,-402.90304553,0.00019081,2]
[393627962,1762865438635,-1000.0,0.00019081,2]
[393627964,1762865438644,-500.0,0.00019178,2]
[393627966,1762865438654,-500.0,0.00019178,2]
[393627968,1762865438663,-498.13938589,0.00019178,2]
[393627970,1762865438672,-166.66,0.00019223,2]
[393627972,1762865438685,-836.87,0.00019438,2]
[393627974,1762865438699,-1500.0,0.00019629,2]
[393627976,1762865438709,-166.66,0.00019784,2]
[393627978,1762865438718,-587.0,0.00019814,2]
[393627980,1762865438727,-28361.57,0.00019899,2]
[393627983,1762865438740,-836.87,0.00020116,2]
[393627985,1762865438749,-2000.0,0.00020177,2]
[393627986,1762865438759,-306.76,0.00020187,2]
[393627989,1762865438772,-500.0,0.000203,2]
[393627991,1762865438782,-500.0,0.000204,2]
[393627993,1762865438792,-836.87,0.00020795,2]
[393627995,1762865438802,-1000.0,0.00020848,2]
[393627997,1762865438812,-478.44322026,0.00020867,2]
[393627999,1762865438822,-1000.0,0.00020948,2]
[393628001,1762865438832,-150.0,0.00021238,2]
[393628003,1762865438842,-500.0,0.00021396,2]
[393628005,1762865438852,-50995.48146013,0.00021603,2]
[393628007,1762865438865,-674.0,0.00021651,2]
[393628009,1762865438875,-163.41,0.00021747,2]
[393628011,1762865438885,-500.0,0.00021756,2]
[393628013,1762865438895,-171.78061721,0.00021756,2]
[393628015,1762865438905,-271.17779576,0.00021756,2]
[393628017,1762865438915,-521.87644165,0.00021756,2]
[393628019,1762865438926,-1453.18,0.00021757,2]
[393628021,1762865438936,-49577.78,0.00021757,2]
[393628023,1762865438945,-1168.75,0.00021757,2]
[393628025,1762865438955,-3577.32,0.00021757,2]
[393628027,1762865438965,-8307.34,0.00021757,2]
[393628029,1762865438975,-499.99,0.00021757,2]
[393628031,1762865438985,-9999.99,0.00021757,2]
[393628033,1762865438995,-9999.99,0.00021757,2]
[393628035,1762865439005,-1720.59,0.00021757,2]
[393628037,1762865439016,-999.99,0.00021757,2]
[393628039,1762865439025,-2946.24,0.00021757,2]
[393628041,1762865439035,-3643.29,0.00021757,2]
[393628043,1762865439045,-1590.95,0.00021757,2]
[393628045,1762865439055,-299.99,0.00021757,7]
[393628047,1762865439065,-1281.66,0.00021757,2]
[393628050,1762865439075,-54283.59,0.00021757,2]
[393628051,1762865439085,-9999.99,0.00021757,2]
[393628054,1762865439094,-6448.65,0.00021757,2]
[393628056,1762865439104,-150.99,0.00021757,2]
[393628057,1762865439114,-9999.99,0.00021757,2]
[393628059,1762865439128,-150.99,0.00021757,2]
[393628061,1762865439138,-505.2514146,0.00021773,2]
[393628062,1762865439148,-500.0,0.00021773,2]
[393628065,1762865439158,-500.28399044,0.00021773,2]
[393628067,1762865439169,-500.0,0.00021773,2]
[393628069,1762865439178,-500.0,0.00021773,2]
[393628071,1762865439188,-500.0,0.00021773,2]
[393628073,1762865439198,-500.0,0.00021773,2]
[393628075,1762865439207,-500.0,0.00021773,2]
[393628077,1762865439217,-500.0,0.00022321,2]
[393628079,1762865439227,-525.9453993,0.00022321,2]
[393628081,1762865439236,-502.1336636,0.00022321,2]
[393628083,1762865439246,-1000.0,0.00022321,2]
[393628085,1762865439256,-1000.0,0.00022321,2]
[393628087,1762865439265,-500.0,0.00022329,2]
[393628089,1762865439275,-500.0,0.00022329,2]
[393628091,1762865439285,-500.26491085,0.00022329,2]
[393628093,1762865439294,-500.0,0.00022329,2]
[393628094,1762865439303,-500.0,0.00022329,2]
[393628097,1762865439313,-500.0,0.00022329,2]
[393628098,1762865439322,-1266.65,0.00022549,2]
[393628101,1762865439331,-501.80740999,0.00022573,2]
[393628102,1762865439340,-160.90585572,0.00022573,2]
[393628104,1762865439350,-500.0,0.00022573,2]
[393628107,1762865439359,-500.0,0.00022573,2]
[393628108,1762865439368,-500.21512962,0.00022573,2]
[393628111,1762865439379,-150.0,0.00022607,2]
[393628113,1762865439388,-1266.65,0.00022823,2]
[393628115,1762865439398,-1000.0,0.00022868,2]
[393628117,1762865439407,-500.0,0.00022868,2]
[393628119,1762865439417,-502.29417655,0.00022877,2]
[393628121,1762865439426,-178.3008851,0.00022877,2]
[393628123,1762865439436,-1002.32902604,0.00022877,2]
[393628125,1762865439445,-1000.0,0.00022877,2]
[393628127,1762865439458,-1266.65,0.00023097,2]
[393628129,1762865439468,-534.44954975,0.00023121,2]
[393628131,1762865439477,-365.21,0.0002321,2]
[393628133,1762865439486,-1266.65,0.00023371,2]
[393628135,1762865439495,-517.52451907,0.00023424,2]
[393628137,1762865439505,-1266.65,0.00023645,2]
[393628139,1762865439514,-1266.65,0.00023919,2]
[393628141,1762865439524,-1266.65,0.00024193,2]
[393628143,1762865439533,-1266.65,0.00024467,2]
[393628145,1762865439543,-806.25,0.00024658,30]
[393628147,1762865439553,-1000.0,0.00024658,2]
[393628149,1762865439562,-1266.65,0.00024741,2]
[393628151,1762865439572,-78561.6663777,0.000248,3]
[393628154,1762865439582,-1006.84,0.00025,2]
[393628156,1762865439592,-1266.65,0.00025015,2]
[393628157,1762865439602,-1266.65,0.00025288,2]
[393628159,1762865439611,-1006.84,0.000255,2]
[393628161,1762865439620,-1266.69417502,0.00025562,2]
[393628163,1762865439630,-1187.22,0.00025786,2]
[393628165,1762865439640,-306.76,0.00026676,2]
[393628167,1762865439649,-173.62,0.00027599,2]
[393628168,1762865439659,-806.25,0.00029704,30]
[393628169,1762865439669,-162.0,0.0003,14]
[393628170,1762865439678,-153.06,0.00031526,2]
[393628171,1762865439688,-162.0,0.00031644,14]
[393628172,1762865439702,-169.94,0.00031834,2]
[393628173,1762865439711,-11223.0951968,0.00032613,3]
[393628174,1762865439721,-8626.90823597,0.00032623,2]
[393628175,1762865439731,-176.747414,0.00032681,2]
[393628176,1762865439741,-178.163465,0.00032681,2]
[393628177,1762865439751,-5065.275,0.00032752,33]
[393628178,1762865439760,-371.935,0.00032752,33]
[393628179,1762865439771,-500.0,0.000328,5]
[393628180,1762865439784,-505.14650434,0.000328,5]
[393628181,1762865439794,-306.76,0.00033165,2]
[393628182,1762865439804,-500.0,0.00033348,5]
[393628183,1762865439814,-10142.82189821,0.00033637,2]
[393628184,1762865439824,-152.0,0.00034162,3]
[393628185,1762865439834,-12798.7321392,0.00034337,3]
[393628186,1762865439844,-11223.0951968,0.00034346,3]
[393628187,1762865439854,-176.747414,0.00034485,2]
[393628188,1762865439864,-178.163465,0.00034485,2]
[393628189,1762865439875,-161.665604,0.00034485,2]
[393628190,1762865439884,-166.592435,0.00034485,2]
[393628191,1762865439894,-500.0,0.0003455,5]
[393628192,1762865439906,-500.0,0.0003455,5]
[393628193,1762865439916,-806.25,0.00034751,30]
[393628194,1762865439925,-595.88155355,0.00035098,5]
[393628195,1762865439935,-500.0,0.00035098,5]
[393628196,1762865439945,-5087.0,0.00036,2]
[393628197,1762865439954,-179.432064,0.00036289,2]
[393628198,1762865439963,-167.809237,0.00036289,2]
[393628199,1762865439973,-160.603281,0.00036289,2]
[393628201,1762865439983,-176.747414,0.00036289,2]
[393628203,1762865439992,-178.163465,0.00036289,2]
[393628205,1762865440002,-161.665604,0.00036289,2]
[393628206,1762865440012,-166.592435,0.00036289,2]
[393628207,1762865440025,-169.94,0.000364,2]
[393628209,1762865440035,-150.0,0.00036507,2]
[393628211,1762865440045,-687.23143131,0.00036674,2]
[393628213,1762865440055,-806.01217252,0.0003684,2]
[393628215,1762865440066,-12798.7321392,0.00036997,4]
[393628217,1762865440075,-11223.0951968,0.00037007,4]
[393628219,1762865440087,-924.79291374,0.00037007,2]
[393628221,1762865440097,-15812.09319399,0.00037017,5]
[393628223,1762865440106,-1043.57365495,0.00037174,2]
[393628225,1762865440116,-246.89823067,0.00037229,2]
[393628227,1762865440125,-1162.35439617,0.0003734,2]
[393628230,1762865440135,-12798.7321392,0.00037411,4]
[393628231,1762865440145,-11223.0951968,0.00037421,4]
[393628233,1762865440155,-1281.13513738,0.00037507,2]
[393628235,1762865440164,-11223.0951968,0.00037663,4]
[393628236,1762865440173,-1399.91587859,0.00037673,2]
[393628237,1762865440182,-1518.69661981,0.0003784,2]
[393628238,1762865440191,-1000.0,0.000379,7]
[393628239,1762865440202,-1637.47736102,0.00038006,2]
[393628240,1762865440211,-179.432064,0.00038092,2]
[393628241,1762865440220,-167.809237,0.00038092,2]
[393628242,1762865440230,-160.603281,0.00038092,2]
[393628243,1762865440244,-176.747414,0.00038092,2]
[393628244,1762865440253,-178.163465,0.00038092,2]
[393628245,1762865440262,-161.665604,0.00038092,2]
[393628246,1762865440274,-166.592435,0.00038092,2]
[393628247,1762865440283,-1756.25810224,0.00038173,2]
[393628248,1762865440293,-12798.7321392,0.00038228,4]
[393628249,1762865440303,-170.45954845,0.00038238,7]
[393628250,1762865440312,-500.0,0.00038238,7]